bitfinex-derivatives/quotes_ETHF0:USTF0_20260119
["timestamp","ask_amount","ask_price","bid_price","bid_amount"]
[1768800238214,2.82331016,3203.0,3201.5,3.60792127]
[1768800238408,0.96973169,3202.9,3201.5,3.60792127]
[1768800238609,0.96973169,3202.8,3201.5,3.60792127]
[1768800238905,0.96973169,3202.7,3201.5,3.60792127]
[1768800239116,0.96973169,3202.6,3201.5,3.60792127]
[1768800239314,2.82331016,3203.0,3201.5,3.60792127]
[1768800239516,0.96978685,3202.9,3201.5,3.60792127]
[1768800239709,0.96978685,3202.8,3201.5,3.60792127]
[1768800239909,0.96978685,3202.7,3201.5,3.60792127]
[1768800240209,0.96978685,3202.6,3201.5,3.60792127]
[1768800240516,2.82331016,3203.0,3201.5,3.60792127]
[1768800240715,0.96980049,3202.9,3201.5,3.60792127]
[1768800240914,0.96980049,3202.8,3201.5,3.60792127]
[1768800241216,0.96980049,3202.7,3201.5,3.60792127]
[1768800241406,0.96980049,3202.6,3201.5,3.60792127]
[1768800241609,2.82331016,3203.0,3201.5,3.60792127]
[1768800241803,0.96987624,3202.9,3201.5,3.60792127]
[1768800242009,0.96987624,3202.8,3201.5,3.60792127]
[1768800242209,0.96987624,3202.7,3201.5,3.60792127]
[1768800242413,0.96987624,3202.6,3201.5,3.60792127]
[1768800242614,2.82331016,3203.0,3201.5,3.60792127]
[1768800242803,0.96995612,3202.9,3201.5,3.60792127]
[1768800243009,0.96995612,3202.8,3201.5,5.40492127]
[1768800243205,0.96995612,3202.7,3201.5,5.40492127]
[1768800243410,0.96995612,3202.6,3201.5,5.40492127]
[1768800243610,2.82331016,3203.0,3201.5,5.40492127]
[1768800243808,0.9700781,3202.9,3201.5,5.40492127]
[1768800244008,0.53136912,3201.1,3199.3,8.85399096]
[1768800244213,0.0046853,3202.6,3198.4,3.60792127]
[1768800244214,1.56133416,3200.0,3198.4,3.60792127]
[1768800244509,1.78613962,3199.9,3198.4,3.60792127]
[1768800244709,1.08913962,3199.8,3198.4,3.60792127]
[1768800244914,40.8,3200.0,3198.4,3.60792127]
[1768800244915,1.08913962,3199.7,3198.4,3.60792127]
[1768800245108,0.00288838,3199.7,3198.4,3.61128123]
[1768800256824,0.15628,3200.7,3198.4,3.61128123]
[1768800257131,1.56133416,3200.2,3198.4,3.61128123]
[1768800257821,1.56400374,3200.2,3198.4,3.61128123]
[1768800258820,0.15632,3199.9,3198.4,3.61128123]
[1768800259020,1.56133416,3199.6,3198.4,3.61128123]
[1768800259722,1.10560782,3199.5,3198.4,3.61128123]
[1768800259923,1.56133416,3199.6,3198.4,3.61128123]
[1768800261823,0.15632,3199.9,3198.4,3.61128123]
[1768800262023,1.10574343,3199.8,3198.4,3.61128123]
[1768800262330,1.10574343,3199.7,3198.4,3.61128123]
[1768800262629,1.10847558,3200.2,3198.4,3.61128123]
[1768800262822,1.10622049,3200.1,3198.4,3.61128123]
[1768800263026,0.00266958,3200.2,3198.4,3.61128123]
[1768800263327,1.10622281,3200.1,3198.4,3.61128123]
[1768800263530,0.00266958,3200.2,3198.4,3.61128123]
[1768800263730,1.10671007,3200.1,3198.4,3.61128123]
[1768800263925,0.00266958,3200.2,3198.4,3.61128123]
[1768800264125,1.10662834,3200.1,3198.4,3.61128123]
[1768800264325,1.10723266,3200.0,3198.4,3.61128123]
[1768800264522,0.00266958,3200.2,3198.4,3.61128123]
[1768800264725,1.56133416,3199.9,3198.4,3.61128123]
[1768800267235,1.1092231,3199.8,3198.4,3.61128123]
[1768800267439,1.56133416,3199.9,3198.4,3.61128123]
[1768800267632,1.10943878,3199.8,3198.4,3.61128123]
[1768800267935,1.56133416,3199.9,3198.4,3.61128123]
[1768800268238,1.10926317,3199.8,3198.4,3.61128123]
[1768800268434,1.56133416,3199.9,3198.4,3.61128123]
[1768800268638,1.11026863,3199.8,3198.4,3.61128123]
[1768800268841,1.1102689,3199.7,3198.4,3.61128123]
[1768800269033,1.56133416,3199.9,3198.4,3.61128123]
[1768800269338,1.11026916,3199.8,3198.4,3.61128123]
[1768800269638,1.11026916,3199.7,3198.4,3.61128123]
[1768800269940,1.11026916,3199.6,3198.4,3.61128123]
[1768800270142,1.56133416,3199.9,3198.4,3.61128123]
[1768800270340,1.11147832,3199.8,3198.4,3.61128123]
[1768800270642,1.11147832,3199.7,3198.4,3.61128123]
[1768800270838,1.11147832,3199.6,3198.4,3.61128123]
[1768800271041,1.56133416,3199.9,3198.4,3.61128123]
[1768800271245,1.11164396,3199.8,3198.4,3.61128123]
[1768800271443,1.11164396,3199.7,3198.4,3.61128123]
[1768800271643,1.11164396,3199.6,3198.4,3.61128123]
[1768800271839,1.11164396,3199.5,3198.4,3.61128123]
[1768800272139,1.105806,3200.1,3198.4,3.61128123]
[1768800272344,0.0046853,3199.3,3198.4,3.61128123]
[1768800272748,1.105806,3199.9,3198.4,3.61128123]
[1768800272939,1.11522529,3199.8,3198.4,3.61128123]
[1768800273140,1.11522529,3199.7,3198.4,3.61128123]
[1768800273339,1.11522529,3199.6,3198.4,3.61128123]
[1768800273546,1.11522529,3199.5,3198.4,3.61128123]
[1768800273742,1.11522529,3199.4,3198.4,3.61128123]
[1768800273943,1.11522529,3199.3,3198.4,3.61128123]
[1768800274144,1.11522529,3199.2,3198.7,3.39583966]
[1768800274346,1.11522529,3199.1,3198.7,3.39583966]
[1768800274549,1.105806,3199.7,3198.7,3.39583966]
[1768800274737,2.22119061,3199.6,3198.7,3.39583966]
[1768800274941,1.11538461,3199.5,3198.7,3.39583966]
[1768800275148,1.11538461,3199.4,3198.7,3.39583966]
[1768800275350,1.11538461,3199.3,3198.7,3.39583966]
[1768800275549,1.11538461,3199.2,3198.7,3.39583966]
[1768800275741,1.11538461,3199.1,3198.7,3.39583966]
[1768800275941,1.105806,3199.7,3198.7,3.39583966]
[1768800276142,1.11051988,3199.6,3198.7,3.39583966]
[1768800276446,2.21632588,3199.5,3198.7,3.39583966]
[1768800276751,1.11051988,3199.4,3198.7,3.39583966]
[1768800276945,1.11051988,3199.3,3198.7,3.39583966]
[1768800277144,1.11051988,3199.2,3198.7,3.39583966]
[1768800277346,1.11051988,3199.1,3198.7,3.39583966]
[1768800277651,1.105806,3199.5,3198.7,3.39583966]
[1768800277949,1.1104603,3199.4,3198.7,3.39583966]
[1768800278140,1.1104603,3199.3,3198.7,3.39583966]
[1768800278341,1.66091392,3199.6,3198.7,3.39583966]
[1768800278747,1.66091392,3199.8,3198.7,3.39583966]
[1768800278952,3.48813004,3201.4,3199.7,3.12868904]
[1768800279140,3.48813004,3201.4,3200.0,1.56434452]
[1768800279345,3.48813004,3201.4,3200.9,1.56434452]
[1768800279747,3.48813004,3201.4,3200.7,3.36234452]
[1768800279949,3.49048762,3201.4,3200.7,1.80168695]
[1768800281955,6.357,3202.5,3201.3,1.56434452]
[1768800282149,1.56434452,3202.7,3201.3,1.56434452]
[1768800282456,40.8,3202.6,3201.3,1.56434452]
[1768800282847,40.80256881,3202.6,3200.7,1.80168695]
[1768800284156,3.48813004,3202.5,3200.7,1.80168695]
[1768800287658,3.48813004,3202.5,3200.9,2.24918721]
[1768800288548,0.00256881,3202.6,3201.0,3.39618313]
[1768800289453,0.00256881,3202.6,3201.4,2.24918721]
[1768800289648,0.00256881,3202.6,3201.5,3.125]
[1768800291052,3.48813004,3203.3,3201.6,3.39618313]
[1768800291358,3.48813004,3203.3,3201.7,1.797]
[1768800291749,3.48813004,3203.3,3202.1,0.0046853]
[1768800292149,3.49097278,3203.3,3202.1,0.0046853]
[1768800292556,0.00284274,3203.3,3202.1,0.0046853]
[1768800296461,0.00284274,3203.3,3202.2,4.92]
[1768800297966,0.00284274,3203.3,3202.3,4.92]
[1768800299553,3.58468816,3203.2,3201.7,0.15623]
[1768800299758,3.58468816,3203.2,2911.1,0.5]
[1768800299759,3.58468816,3201.4,3198.8,3.45155716]
[1768800299968,3.58468816,3201.1,3198.9,3.45155716]
[1768800300663,3.58468816,3201.1,3198.9,3.45496587]
[1768800301064,0.0046853,3200.3,3198.9,3.45496587]
[1768800301271,0.00834991,3200.3,3198.9,3.45496587]
[1768800301870,0.00834991,3200.3,3199.3,3.45624246]
[1768800302069,0.00834991,3200.3,3199.4,3.124]
[1768800305973,0.15624,3201.5,3199.5,3.45155716]
[1768800306272,3.74092816,3201.5,3199.6,5.24755716]
[1768800306869,3.74490439,3201.5,3199.6,5.24755716]
[1768800308275,3.58468816,3201.4,3199.6,5.24755716]
[1768800309677,3.58468816,3201.4,3199.7,4.921]
[1768800314171,3.58468816,3201.4,3199.3,3.45624246]
[1768800314366,3.58468816,3201.4,3199.8,1.796]
[1768800320970,3.58468816,3201.4,3199.9,1.796]
[1768800324287,3.58468816,3201.4,3200.0,1.796]
[1768800327484,4.50559518,3201.3,3200.0,1.796]
[1768800327687,3.52465629,3201.3,3200.0,1.796]
[1768800328390,0.98269842,3201.2,3200.0,1.796]
[1768800328588,3.52465629,3201.3,3200.0,1.796]
[1768800328787,0.98278295,3201.2,3200.0,1.796]
[1768800328987,3.52465629,3201.3,3200.0,1.796]
[1768800329283,0.98278298,3201.2,3200.0,1.796]
[1768800329479,0.98278298,3201.1,3200.0,1.796]
[1768800329679,0.98278298,3201.0,3200.0,1.796]
[1768800329987,0.98278298,3200.9,3200.0,1.796]
[1768800330187,3.52465629,3201.3,3200.0,1.796]
[1768800330388,0.98649682,3201.2,3200.0,1.796]
[1768800330582,0.98649682,3201.1,3200.0,1.796]
[1768800330788,0.98649682,3201.0,3200.0,1.796]
[1768800330988,0.98649682,3200.9,3200.0,1.796]
[1768800331179,4.6289678,3201.3,3200.0,1.796]
[1768800331380,0.98649555,3201.2,3200.0,1.796]
[1768800331579,0.98649555,3201.1,3200.0,1.796]
[1768800331785,0.98649555,3201.0,3200.0,1.796]
[1768800331987,0.98649555,3200.9,3200.0,1.796]
[1768800332176,4.6289678,3201.3,3200.0,1.796]
[1768800332376,0.98650422,3201.2,3200.0,1.796]
[1768800332583,0.98650422,3201.1,3200.0,1.796]
[1768800332781,0.98650422,3201.0,3200.0,1.796]
[1768800332981,0.98650422,3200.9,3200.0,1.796]
[1768800333181,4.6289678,3201.3,3200.0,1.796]
[1768800333384,0.98652438,3201.2,3200.0,1.796]
[1768800333590,0.98652438,3201.1,3200.0,1.796]
[1768800333785,0.98652438,3201.0,3200.0,1.796]
[1768800333985,0.98652438,3200.9,3200.0,1.796]
[1768800334184,4.6289678,3201.3,3200.0,1.796]
[1768800334384,0.98657515,3201.2,3200.0,1.796]
[1768800334589,0.98657515,3201.1,3200.0,1.796]
[1768800334790,0.98657515,3201.0,3200.0,1.796]
[1768800334990,0.98657515,3200.9,3200.0,3.35899232]
[1768800335186,6.07425329,3200.8,3200.0,1.796]
[1768800335396,0.98660468,3200.7,3200.0,1.796]
[1768800335596,0.98658316,3200.6,3200.0,1.796]
[1768800335902,5.08764861,3200.8,3200.0,1.796]
[1768800336084,0.9865834,3200.7,3200.0,1.796]
[1768800336389,5.08764861,3200.8,3200.0,1.796]
[1768800336590,0.98654555,3200.7,3200.0,1.796]
[1768800336787,3.52465629,3200.8,3200.0,1.796]
[1768800336988,0.98654548,3200.7,3200.0,1.796]
[1768800337192,3.52465629,3200.8,3200.0,1.796]
[1768800337391,0.98654576,3200.7,3200.0,1.796]
[1768800337698,3.52465629,3200.8,3200.0,1.796]
[1768800337883,0.98651077,3200.7,3200.0,1.796]
[1768800338083,3.52465629,3200.8,3200.0,1.796]
[1768800338288,0.98667344,3200.7,3200.0,1.796]
[1768800338488,3.52465629,3200.8,3200.0,1.796]
[1768800338688,0.98663333,3200.7,3200.0,1.796]
[1768800338891,3.52465629,3200.8,3200.0,1.796]
[1768800339094,0.98663411,3200.7,3200.0,1.796]
[1768800339284,3.52465629,3200.8,3200.0,1.796]
[1768800339591,0.98660991,3200.7,3200.0,1.796]
[1768800339786,3.52465629,3200.8,3200.0,1.796]
[1768800339994,0.98680826,3200.7,3200.0,1.796]
[1768800340294,3.52465629,3200.8,3200.0,1.796]
[1768800340495,0.9867863,3200.7,3200.0,1.796]
[1768800340792,3.52465629,3200.8,3200.0,1.796]
[1768800340985,0.98678688,3200.7,3200.0,1.796]
[1768800341185,4.58139928,3201.2,3200.0,1.796]
[1768800341389,0.98684124,3201.1,3200.0,1.796]
[1768800341590,0.98684124,3201.0,3200.0,1.796]
[1768800341792,0.98684124,3200.9,3200.0,1.796]
[1768800341993,0.98684124,3200.8,3200.0,1.796]
[1768800342192,0.98684124,3200.7,3200.0,1.796]
[1768800342395,4.58139928,3201.2,3200.0,1.796]
[1768800342592,0.98693216,3201.1,3200.0,1.796]
[1768800342791,0.98693216,3201.0,3200.0,1.796]
[1768800342993,0.98693216,3200.9,3200.0,1.796]
[1768800343295,0.98693216,3200.8,3200.0,1.796]
[1768800343598,0.98693216,3200.7,3200.0,1.796]
[1768800343800,4.58139928,3201.2,3200.0,1.796]
[1768800344094,0.9869229,3201.1,3200.0,1.796]
[1768800344398,0.9869229,3201.0,3200.0,1.796]
[1768800344599,0.9869229,3200.9,3200.0,1.796]
[1768800344794,0.9869229,3200.8,3200.0,1.796]
[1768800344996,0.9869229,3200.7,3200.0,1.796]
[1768800345198,4.58139928,3201.2,3200.0,1.796]
[1768800345498,2.0912353,3201.1,3200.0,1.796]
[1768800346400,0.98692379,3201.0,3200.0,1.796]
[1768800346600,0.98692379,3200.9,3200.0,1.796]
[1768800346803,0.98692379,3200.8,3200.0,1.796]
[1768800347003,0.98692379,3200.7,3200.0,1.796]
[1768800347206,4.58139928,3201.2,3200.0,1.796]
[1768800347404,0.98695157,3201.1,3200.0,1.796]
[1768800347604,0.98695157,3201.0,3200.0,1.796]
[1768800347807,0.98695157,3200.9,3200.0,1.796]
[1768800348006,0.98695157,3200.8,3200.0,1.796]
[1768800348205,0.98695157,3200.7,3200.0,1.796]
[1768800348408,4.58139928,3201.2,3200.0,1.796]
[1768800348709,0.98705838,3201.1,3200.0,1.796]
[1768800348909,0.98705838,3201.0,3200.0,1.796]
[1768800349209,0.98705838,3200.9,3200.0,1.796]
[1768800349408,0.98705838,3200.8,3200.0,1.796]
[1768800349709,0.98705838,3200.7,3200.0,1.796]
[1768800349910,4.58139928,3201.2,3200.0,1.796]
[1768800350112,0.98532245,3201.1,3200.0,1.796]
[1768800350310,0.98532245,3201.0,3200.0,1.796]
[1768800350513,0.98532245,3200.9,3200.0,1.796]
[1768800350708,0.98532245,3200.8,3200.0,1.796]
[1768800350906,0.98532245,3200.7,3199.4,3.32837295]
[1768800351114,3.47708777,3201.0,3199.5,4.921]
[1768800351408,0.9853695,3200.9,3199.5,4.921]
[1768800351611,0.9853695,3200.8,3199.5,4.921]
[1768800351814,0.9853695,3200.7,3199.5,4.921]
[1768800352118,3.47708777,3201.0,3199.5,4.921]
[1768800352415,0.9853726,3200.9,3199.5,4.921]
[1768800352608,0.9853726,3200.8,3199.5,4.921]
[1768800352915,3.47708777,3201.0,3199.5,4.921]
[1768800353210,0.98537041,3200.9,3199.5,4.921]
[1768800353414,0.98537041,3200.8,3199.5,4.921]
[1768800353609,3.47708777,3201.0,3199.5,4.921]
[1768800353809,0.98538511,3200.9,3199.5,4.921]
[1768800354006,3.47708777,3201.0,3199.5,4.921]
[1768800354007,0.98538511,3200.8,3199.5,4.921]
[1768800354212,3.47708777,3201.0,3199.5,4.921]
[1768800354406,0.98539607,3200.9,3199.4,3.32837295]
[1768800354614,0.98539607,3200.8,3199.6,1.795]
[1768800354803,3.47708777,3201.0,3199.6,1.795]
[1768800355007,0.9854021,3200.9,3199.6,1.795]
[1768800355216,0.9854021,3200.8,3199.6,1.795]
[1768800355427,3.47708777,3201.0,3199.6,1.795]
[1768800355614,0.98545311,3200.9,3199.6,1.795]
[1768800355919,0.98545311,3200.8,3199.6,1.795]
[1768800356115,3.47708777,3201.0,3199.6,1.795]
[1768800356417,0.98545591,3200.9,3199.6,1.795]
[1768800356617,0.98545591,3200.8,3199.6,1.795]
[1768800356817,3.47708777,3201.0,3199.6,1.795]
[1768800357015,0.98546698,3200.9,3199.4,3.32837295]
[1768800357218,0.98546698,3200.8,3199.7,1.795]
[1768800357420,3.47708777,3201.0,3199.7,1.795]
[1768800357614,0.98547348,3200.9,3199.7,1.795]
[1768800357814,0.98547348,3200.8,3199.4,3.32837295]
[1768800358118,3.47708777,3201.0,3199.5,5.3310298]
[1768800358313,0.98545424,3200.9,3199.6,1.795]
[1768800358522,0.98545424,3200.8,3199.6,1.795]
[1768800358716,3.47708777,3201.0,3199.5,3.5360298]
[1768800359022,0.9854718,3200.9,3199.6,1.795]
[1768800359316,0.9854718,3200.8,3199.6,1.795]
[1768800359520,3.47708777,3201.0,3199.6,1.795]
[1768800359722,0.98549266,3200.9,3199.6,1.795]
[1768800359919,0.98549266,3200.8,3199.6,1.795]
[1768800360120,0.15626,3201.2,3199.6,5.3310298]
[1768800360316,0.98549227,3201.1,3199.7,3.5360298]
[1768800360510,0.98549227,3201.0,3199.7,3.5360298]
[1768800360710,0.98549227,3200.9,3199.7,3.5360298]
[1768800360921,0.15626,3201.2,3199.7,3.5360298]
[1768800361124,0.98553827,3201.1,3199.7,3.5360298]
[1768800361314,0.98553827,3201.0,3199.7,3.5360298]
[1768800361515,0.98553827,3200.9,3199.7,3.5360298]
[1768800361814,0.15626,3201.2,3199.7,3.5360298]
[1768800362016,0.98562577,3201.1,3199.7,3.5360298]
[1768800362216,0.98562577,3201.0,3199.7,3.5360298]
[1768800362416,0.98562577,3200.9,3199.7,3.5360298]
[1768800362626,3.48611881,3201.2,3199.7,3.5360298]
[1768800362822,0.98573067,3201.1,3199.7,3.5360298]
[1768800363014,0.98573067,3201.0,3199.7,3.5360298]
[1768800363214,0.98573067,3200.9,3199.7,3.5360298]
[1768800363418,3.48611881,3201.2,3199.7,3.5360298]
[1768800363721,0.98586801,3201.1,3199.7,3.5360298]
[1768800364018,0.98586801,3201.0,3199.7,3.5360298]
[1768800364225,0.98586801,3200.9,3199.7,3.5360298]
[1768800364423,0.98586801,3200.8,3199.7,3.5360298]
[1768800364625,3.48611881,3201.2,3199.7,3.5360298]
[1768800364825,0.98610629,3201.1,3199.7,3.5360298]
[1768800365128,0.98610629,3201.0,3199.7,3.5360298]
[1768800365325,0.98610629,3200.9,3199.7,3.5360298]
[1768800365625,0.98610629,3200.8,3199.7,3.5360298]
[1768800365815,3.48611881,3201.2,3199.7,3.5360298]
[1768800366018,0.98611463,3201.1,3199.7,3.5360298]
[1768800366324,0.98611463,3201.0,3199.7,3.5360298]
[1768800366525,0.98611463,3200.9,3199.7,3.5360298]
[1768800366727,0.98611463,3200.8,3199.7,3.5360298]
[1768800366925,3.48611881,3201.2,3199.7,3.5360298]
[1768800367126,0.98683707,3201.1,3199.7,3.5360298]
[1768800367327,0.98683707,3201.0,3199.7,3.5360298]
[1768800367529,0.98683707,3200.9,3199.7,3.5360298]
[1768800367829,3.48611881,3201.2,3199.7,3.5360298]
[1768800368126,0.98652798,3201.1,3199.7,3.5360298]
[1768800368426,0.98652798,3201.0,3199.7,3.5360298]
[1768800368620,0.98652798,3200.9,3199.7,3.5360298]
[1768800368927,3.48611881,3201.2,3199.7,3.5360298]
[1768800369125,0.98654321,3201.1,3199.7,3.5360298]
[1768800369325,0.98654321,3201.0,3199.7,3.5360298]
[1768800369522,3.48611881,3201.2,3199.7,3.5360298]
[1768800369716,0.98650853,3201.1,3199.7,3.5360298]
[1768800369914,3.32985881,3200.9,3199.7,1.795]
[1768800370116,0.98650853,3200.8,3199.7,1.795]
[1768800370315,3.32985881,3200.9,3199.7,1.795]
[1768800370516,0.98640186,3200.8,3199.7,1.795]
[1768800370720,3.32985881,3200.9,3199.7,1.795]
[1768800370918,0.98640852,3200.8,3199.7,1.795]
[1768800371226,3.32985881,3200.9,3199.7,1.795]
[1768800371428,0.9864067,3200.8,3199.7,1.795]
[1768800371632,3.32985881,3200.9,3199.7,1.795]
[1768800371824,0.98641916,3200.8,3199.7,1.795]
[1768800372021,0.98641952,3200.7,3199.7,1.795]
[1768800372228,0.15627,3201.0,3199.7,1.795]
[1768800372423,0.98642105,3200.9,3199.7,1.795]
[1768800372731,0.98642105,3200.8,3199.7,1.795]
[1768800372927,0.98642105,3200.7,3199.8,1.795]
[1768800373133,0.15627,3201.0,3199.8,1.795]
[1768800373332,0.98615275,3200.9,3199.8,1.795]
[1768800373526,0.98615275,3200.8,3199.8,1.795]
[1768800373726,0.98615275,3200.7,3199.8,1.795]
[1768800373934,0.15627,3201.0,3199.8,1.795]
[1768800374135,0.9861435,3200.9,3199.8,1.795]
[1768800374334,0.9861435,3200.8,3199.8,1.795]
[1768800374634,0.9861435,3200.7,3199.8,1.795]
[1768800374934,0.15627,3201.0,3199.8,1.795]
[1768800375134,0.98613434,3200.9,3199.8,1.795]
[1768800375335,0.98613434,3200.8,3199.8,1.795]
[1768800375631,0.98613434,3200.7,3199.8,1.795]
[1768800375934,0.15627,3201.0,3199.8,1.795]
[1768800376135,0.98613102,3200.9,3199.8,1.795]
[1768800376322,0.98613102,3200.8,3199.8,1.795]
[1768800376526,0.98613102,3200.7,3199.8,1.795]
[1768800376727,0.15627,3201.0,3199.8,1.795]
[1768800376926,0.98612844,3200.9,3199.8,1.795]
[1768800377220,0.98612844,3200.8,3199.8,1.795]
[1768800377424,0.98612844,3200.7,3199.8,1.795]
[1768800377624,0.15627,3201.0,3199.8,1.795]
[1768800377822,0.98615745,3200.9,3199.8,1.795]
[1768800378028,0.98615745,3200.8,3199.8,1.795]
[1768800378231,0.15627,3201.0,3199.8,1.795]
[1768800378431,0.98612093,3200.9,3199.8,1.795]
[1768800378631,0.15627,3201.0,3199.8,1.795]
[1768800378836,0.98612094,3200.9,3199.8,1.795]
[1768800379133,0.15627,3201.0,3199.8,1.795]
[1768800379338,0.98609472,3200.9,3199.8,1.795]
[1768800379531,0.15627,3201.0,3199.8,1.795]
[1768800379731,0.98608964,3200.9,3199.8,1.795]
[1768800379930,0.98477369,3200.8,3199.8,1.795]
[1768800380238,0.15627,3201.0,3199.8,1.795]
[1768800380439,0.98475302,3200.9,3199.8,1.795]
[1768800380639,0.15627,3201.0,3199.8,1.795]
[1768800380839,0.98474669,3200.9,3199.8,1.795]
[1768800381040,0.15627,3201.0,3199.8,1.795]
[1768800381236,0.98474652,3200.9,3199.8,1.795]
[1768800381431,0.15627,3201.0,3199.8,1.795]
[1768800381633,0.98472331,3200.9,3199.8,1.795]
[1768800381840,0.15627,3201.0,3199.8,1.795]
[1768800382139,0.98472434,3200.9,3199.8,1.795]
[1768800382339,0.15627,3201.0,3199.8,1.795]
[1768800382535,0.98470402,3200.9,3199.8,1.795]
[1768800382835,0.15627,3201.0,3199.8,5.36918351]
[1768800384939,0.15627,3201.0,3199.9,1.794]
[1768800387537,3.32985881,3201.3,3199.9,1.794]
[1768800387732,0.98435186,3201.2,3199.9,1.794]
[1768800388042,0.98435186,3201.1,3199.9,1.794]
[1768800388246,3.32985881,3201.3,3199.9,1.794]
[1768800388443,0.98427932,3201.2,3199.9,1.794]
[1768800388642,0.98427932,3201.1,3199.9,5.36818351]
[1768800388840,0.00397623,3201.5,3200.0,3.57418351]
[1768800389040,0.98337993,3201.4,3200.0,3.57418351]
[1768800389341,4.56844382,3201.3,3199.9,1.794]
[1768800389545,4.56844382,3201.2,3200.0,1.794]
[1768800389842,0.98337993,3201.1,3200.0,1.794]
[1768800390042,3.58506389,3201.2,3200.0,1.794]
[1768800390344,0.98321831,3201.1,3200.0,1.794]
[1768800390545,3.58506389,3201.2,3200.0,1.794]
[1768800390742,0.98317845,3201.1,3200.0,1.794]
[1768800390943,3.58506389,3201.2,3200.0,1.794]
[1768800391144,0.98335656,3201.1,3200.0,1.794]
[1768800391338,3.58506389,3201.2,3200.0,1.794]
[1768800391537,0.98331734,3201.1,3200.0,1.794]
[1768800391738,3.58506389,3201.2,3200.0,1.794]
[1768800391940,0.98337855,3201.1,3200.0,1.794]
[1768800392243,3.58506389,3201.2,3200.0,1.794]
[1768800392445,0.98334131,3201.1,3200.0,1.794]
[1768800392636,3.58506389,3201.2,3200.0,1.794]
[1768800392838,0.98333333,3201.1,3200.0,1.794]
[1768800393145,0.98326592,3201.0,3200.0,1.794]
[1768800393340,3.58506389,3201.2,3200.0,1.794]
[1768800393647,0.98328251,3201.1,3200.0,1.794]
[1768800393841,0.98328251,3201.0,3200.0,1.794]
[1768800394039,3.58506389,3201.2,3200.0,1.794]
[1768800394239,0.98327557,3201.1,3200.0,1.794]
[1768800394438,3.58506389,3201.2,3200.0,1.794]
[1768800394439,0.98327557,3201.0,3200.0,1.794]
[1768800394648,3.58506389,3201.2,3200.0,1.794]
[1768800394944,0.98328342,3201.1,3200.0,1.794]
[1768800395142,0.98328342,3201.0,3200.0,1.794]
[1768800395344,3.58506389,3201.2,3200.0,1.794]
[1768800395545,0.98329809,3201.1,3200.0,1.794]
[1768800395746,0.98329809,3201.0,3200.0,1.794]
[1768800396048,3.58506389,3201.2,3200.0,1.794]
[1768800396247,0.98330375,3201.1,3200.0,1.794]
[1768800396447,0.98330375,3201.0,3200.0,1.794]
[1768800396646,3.58506389,3201.2,3200.0,1.794]
[1768800396835,0.98331387,3201.1,3200.0,1.794]
[1768800397032,0.98331387,3201.0,3200.0,1.794]
[1768800397237,3.58506389,3201.2,3200.0,1.794]
[1768800397434,0.98325175,3201.1,3200.0,1.794]
[1768800397752,3.58506389,3201.2,3200.0,1.794]
[1768800398046,0.98330526,3201.1,3200.1,1.794]
[1768800398251,3.58506389,3201.2,3200.1,1.794]
[1768800398455,0.98327983,3201.1,3200.1,1.794]
[1768800398646,3.58506389,3201.2,3200.1,1.794]
[1768800398950,0.98328128,3201.1,3200.1,1.794]
[1768800399149,5.14818782,3201.2,3200.1,1.794]
[1768800399350,0.98326233,3201.1,3200.1,1.794]
[1768800399554,5.14818782,3201.2,3200.1,1.794]
[1768800399848,0.98326168,3201.1,3200.1,1.794]
[1768800400035,5.14818782,3201.2,3200.1,1.794]
[1768800400237,0.98326219,3201.1,3200.1,1.794]
[1768800400434,5.14818782,3201.2,3200.1,1.794]
[1768800400644,0.98327849,3201.1,3200.1,1.794]
[1768800400841,5.14818782,3201.2,3200.1,1.794]
[1768800401148,0.98327867,3201.1,3200.1,1.794]
[1768800401349,5.14818782,3201.2,3199.6,3.57418351]
[1768800401648,0.98330304,3201.1,3199.7,1.794]
[1768800401848,5.14818782,3201.2,3199.7,1.794]
[1768800402048,0.98330347,3201.1,3199.7,1.794]
[1768800402249,5.14818782,3201.2,3199.7,1.794]
[1768800402449,0.98333508,3201.1,3199.7,1.794]
[1768800402645,5.14818782,3201.2,3199.7,1.794]
[1768800402850,5.8340237,3201.1,3199.7,1.794]
[1768800403051,0.98313334,3201.0,3199.7,1.794]
[1768800403251,4.8508411,3201.1,3199.7,1.794]
[1768800403548,0.98318243,3201.0,3199.7,1.794]
[1768800403749,4.8508411,3201.1,3199.7,1.794]
[1768800403951,0.9831824,3201.0,3199.7,1.794]
[1768800404148,4.8508411,3201.1,3199.7,1.794]
[1768800404348,0.98323972,3201.0,3199.7,1.794]
[1768800404551,4.8508411,3201.1,3199.7,1.794]
[1768800404746,0.9832405,3201.0,3199.7,1.794]
[1768800405053,4.8508411,3201.1,3199.7,1.794]
[1768800405253,0.98333894,3201.0,3199.7,1.794]
[1768800405452,4.8508411,3201.1,3199.7,1.794]
[1768800405649,4.27069038,3201.0,3199.8,1.793]
[1768800405953,3.28771717,3201.0,3199.8,1.793]
[1768800406154,1.56312393,3201.2,3199.8,1.793]
[1768800406356,0.98298346,3201.1,3199.8,5.37610135]
[1768800406548,0.98298346,3201.0,3199.8,5.37610135]
[1768800406754,1.56312393,3201.2,3199.8,5.37610135]
[1768800406942,0.9829768,3201.1,3199.8,5.37610135]
[1768800407152,0.9829768,3201.0,3199.8,5.37610135]
[1768800407348,1.56312393,3201.2,3199.8,5.37610135]
[1768800407550,0.98306197,3201.1,3199.8,5.37610135]
[1768800407843,0.98306197,3201.0,3199.8,5.37610135]
[1768800408047,1.56312393,3201.1,3199.8,5.37610135]
[1768800408254,0.98295725,3201.0,3199.8,3.58310135]
[1768800408559,1.56312393,3201.1,3199.9,1.793]
[1768800408761,0.98297777,3201.0,3199.9,1.793]
[1768800408946,1.56312393,3201.1,3199.9,1.793]
[1768800409149,0.9829771,3201.0,3199.9,1.793]
[1768800409351,1.56312393,3201.1,3199.9,1.793]
[1768800409554,0.98299856,3201.0,3199.9,1.793]
[1768800409863,1.56312393,3201.1,3199.9,1.793]
[1768800410161,0.98279264,3201.0,3199.9,1.793]